bitfinex-derivatives/quotes_ETHF0:USTF0_20250531
["timestamp","ask_amount","ask_price","bid_price","bid_amount"]
[1748689384622,0.86439339,2521.6,2521.5,2.10397]
[1748689385125,0.79283,2521.7,2521.6,0.79281]
[1748689387524,0.79286,2521.6,2521.5,0.79284]
[1748689388027,0.79286,2521.6,2521.5,2.07534]
[1748689394135,0.99076,2521.6,2521.5,2.07534]
[1748689397042,0.79287,2521.5,2521.4,4.00664723]
[1748689397335,0.86442339,2521.5,2521.4,4.00664723]
[1748689400242,0.79287,2521.5,2521.4,4.00664723]
[1748689402247,0.26945339,2521.6,2521.5,0.79287]
[1748689402441,1.06229339,2521.6,2521.5,2.76937]
[1748689403245,0.26945339,2521.6,2521.5,2.76937]
[1748689403445,1.06229339,2521.6,2521.5,2.76937]
[1748689404144,1.06229339,2521.6,2521.5,1.9765]
[1748689404352,1.06229339,2521.6,2521.5,2.76937]
[1748689405041,1.06229339,2521.6,2521.5,1.9765]
[1748689405248,0.79287,2521.5,2521.4,0.00595723]
[1748689405546,2.09537,2521.5,2521.4,0.00595723]
[1748689405744,0.79287,2521.5,2521.4,0.00595723]
[1748689406241,0.79287,2521.5,2521.4,1.24415723]
[1748689406438,0.79287,2521.5,2521.4,2.03705723]
[1748689406645,2.19121956,2521.5,2521.4,2.03705723]
[1748689408246,2.19121956,2521.5,2521.4,1.24415723]
[1748689409345,2.19121956,2521.5,2521.4,2.03705723]
[1748689409552,1.39834956,2521.5,2521.4,5.24485723]
[1748689410348,2.19121956,2521.5,2521.4,4.45195723]
[1748689410554,2.19121956,2521.5,2521.4,1.24415723]
[1748689410752,0.79287,2521.5,2521.4,1.24415723]
[1748689410953,0.79287,2521.5,2521.4,2.03705723]
[1748689411152,0.79287,2521.5,2521.4,1.24415723]
[1748689411450,0.79287,2521.5,2521.4,2.03705723]
[1748689411951,2.18747495,2521.5,2521.4,2.03705723]
[1748689412655,2.18747495,2521.5,2521.4,1.24415723]
[1748689413459,2.18747495,2521.5,2521.1,7.1618]
[1748689413460,0.79296,2521.2,2521.1,3.2078]
[1748689413649,0.79306,2520.9,2520.8,4.00087]
[1748689413848,5.1004,2521.4,2520.8,4.00087]
[1748689413849,0.79305,2521.0,2520.9,0.79304]
[1748689414141,0.79305,2521.0,2520.9,2.82554]
[1748689416150,0.79306,2520.9,2520.8,3.2078]
[1748689416350,0.79309,2520.8,2520.7,0.00595723]
[1748689416558,0.79309,2520.8,2520.7,0.79907723]
[1748689417049,0.79307,2520.9,2520.8,0.79305]
[1748689417650,0.79309,2520.8,2520.7,0.79905723]
[1748689418357,0.79309,2520.8,2520.7,0.00595723]
[1748689419154,0.79309,2520.8,2520.7,0.79907723]
[1748689419861,0.79309,2520.8,2520.7,0.00595723]
[1748689420254,2.77009,2520.8,2520.7,0.00595723]
[1748689421052,4.1595982,2520.8,2520.7,0.00595723]
[1748689422159,7.3673982,2520.8,2520.7,0.00595723]
[1748689423058,4.1595982,2520.8,2520.7,0.00595723]
[1748689423759,2.77009,2520.8,2520.7,0.00595723]
[1748689424159,10.97789,2520.8,2520.7,0.00595723]
[1748689425259,12.36560278,2520.8,2520.7,0.00595723]
[1748689426365,30.65060278,2520.8,2520.7,0.00595723]
[1748689427769,27.44280278,2520.8,2520.7,0.00595723]
[1748689428066,30.65060278,2520.8,2520.7,0.00595723]
[1748689428366,25.65060278,2520.8,2520.7,0.00595723]
[1748689428970,5.33139,2520.8,2520.7,0.00595723]
[1748689430270,2.12359,2520.8,2520.7,0.00595723]
[1748689430664,2.19514339,2520.8,2520.7,0.00595723]
[1748689434180,2.39324339,2520.8,2520.7,0.00595723]
[1748689434871,3.7816445,2520.8,2520.7,0.00595723]
[1748689440573,2.39324339,2520.8,2520.7,0.00595723]
[1748689441082,3.78293952,2520.8,2520.7,0.00595723]
[1748689442771,0.79322,2520.4,2520.3,3.2078]
[1748689443772,0.79325,2520.3,2520.2,0.6742]
[1748689443969,0.79325,2520.3,2520.2,1.993]
[1748689445072,0.79911723,2520.6,2520.5,0.79319]
[1748689445277,0.79911723,2520.6,2520.5,4.00099]
[1748689445474,0.79911723,2520.6,2520.5,3.2078]
[1748689446272,2.19049062,2520.6,2520.5,3.2078]
[1748689447378,2.19049062,2520.6,2520.5,5.1409]
[1748689451485,2.19049062,2520.6,2520.5,1.9331]
[1748689454384,1.39733062,2520.6,2520.5,10.93408]
[1748689454579,3.90836123,2521.5,2520.9,1.98265]
[1748689454580,3.12490335,2521.2,2520.9,1.98265]
[1748689454783,3.12490335,2521.2,2521.1,4.0008]
[1748689455278,0.79289,2521.5,2521.4,0.7929]
[1748689455684,0.79286,2521.6,2521.5,0.79286]
[1748689456480,0.00595723,2521.7,2521.2,1.2457]
[1748689456686,0.79289,2521.5,2521.4,0.79289]
[1748689457175,0.79293,2521.3,2521.2,2.03865]
[1748689457378,0.79289,2521.5,2521.4,0.79288]
[1748689458390,0.00595723,2521.7,2521.3,1.253]
[1748689458589,0.79288,2521.5,2521.4,0.7929]
[1748689458787,0.79878723,2521.7,2521.6,0.79284]
[1748689459090,0.79287,2521.6,2521.5,0.79286]
[1748689459290,0.79287,2521.5,2521.4,0.79883723]
[1748689460181,0.86442339,2521.5,2521.4,0.00595723]
[1748689465390,2.22402339,2521.5,2521.4,0.00595723]
[1748689466692,0.86442339,2521.5,2521.4,0.00595723]
[1748689476407,2.11772339,2521.5,2521.4,0.00595723]
[1748689477207,5.32552339,2521.5,2521.4,0.00595723]
[1748689477810,6.70465422,2521.5,2521.4,0.00595723]
[1748689478012,0.79309,2520.8,2520.7,4.5985]
[1748689478213,0.79309,2520.8,2520.7,5.39161]
[1748689478608,0.79308,2520.9,2520.8,0.79307]
[1748689479007,0.79308,2520.9,2520.8,2.12137]
[1748689479513,0.79308,2520.9,2520.8,2.79137]
[1748689479707,2.63678,2521.4,2521.0,0.79299]
[1748689479708,0.79302,2521.1,2521.0,0.79299]
[1748689480111,0.79303,2521.0,2520.9,2.10734]
[1748689481815,0.79302,2521.1,2521.0,0.793]
[1748689482018,0.79302,2521.1,2521.0,2.1073]
[1748689483221,0.79299,2521.2,2521.1,0.79297]
[1748689483517,0.79296,2521.3,2521.2,0.79294]
[1748689485019,2.17788837,2521.3,2521.2,0.79294]
[1748689485323,2.17788837,2521.3,2521.2,4.00074]
[1748689488423,2.17788837,2521.3,2521.2,4.66994]
[1748689490525,2.24944176,2521.3,2521.2,4.66994]
[1748689494834,2.24944176,2521.3,2521.2,3.877]
[1748689495630,2.24944176,2521.3,2521.2,5.1262]
[1748689496837,2.24944176,2521.3,2521.2,5.91916]
[1748689497728,2.24944176,2521.3,2521.2,2.71136]
[1748689498128,2.24944176,2521.3,2521.2,1.9184]
[1748689498632,0.79306,2520.9,2520.8,0.79307]
[1748689498831,0.79306,2520.9,2520.8,2.73847]
[1748689499825,0.79304,2521.0,2520.9,0.79302]
[1748689500132,0.79304,2521.0,2520.9,2.05912]
[1748689501430,0.79302,2521.1,2521.0,0.793]
[1748689502133,2.18125432,2521.1,2521.0,0.793]
[1748689503138,1.38823432,2521.1,2521.0,0.793]
[1748689505133,2.18123432,2521.1,2521.0,0.793]
[1748689505738,2.25278771,2521.1,2521.0,0.793]
[1748689507032,2.25278771,2521.1,2521.0,2.0408]
[1748689508539,1.45978771,2521.1,2521.0,2.0408]
[1748689509438,2.25278771,2521.1,2521.0,2.0408]
[1748689511434,2.25278771,2521.1,2521.0,1.2478]
[1748689511639,0.79303,2521.0,2520.9,4.00086]
[1748689511934,3.35333,2521.0,2520.9,4.00086]
[1748689512336,0.79306,2520.9,2520.8,1.47238]
[1748689512534,0.79306,2520.9,2520.8,0.79308]
[1748689512731,2.09656,2520.9,2520.8,0.79308]
[1748689513235,2.04985,2521.0,2520.9,0.79306]
[1748689513536,0.07155339,2521.1,2521.0,0.79303]
[1748689513835,0.07155339,2521.1,2521.0,2.76013]
[1748689514033,1.46213911,2521.1,2521.0,2.76013]
[1748689517141,2.25513911,2521.1,2521.0,2.76013]
[1748689518041,1.46213911,2521.1,2521.0,2.76013]
[1748689518840,2.25513911,2521.1,2521.0,2.76013]
[1748689519941,1.46213911,2521.1,2521.0,2.76013]
[1748689522443,2.25513911,2521.1,2521.0,2.76013]
[1748689523041,1.46213911,2521.1,2521.0,2.76013]
[1748689523247,2.25513911,2521.1,2521.0,2.76013]
[1748689524448,1.46213911,2521.1,2521.0,2.76013]
[1748689525147,2.25513911,2521.1,2521.0,2.76013]
[1748689525348,2.25513911,2521.1,2521.0,0.79303]
[1748689526351,2.25513911,2521.1,2521.0,2.14463]
[1748689527652,2.25513911,2521.1,2521.0,0.79303]
[1748689529453,2.87643911,2521.1,2521.0,0.79303]
[1748689530150,2.08343911,2521.1,2521.0,0.79303]
[1748689530346,1.46213911,2521.1,2521.0,2.12263]
[1748689533063,2.25513911,2521.1,2521.0,2.12263]
[1748689533661,0.79303,2521.0,2520.9,0.79303]
[1748689533961,2.67973,2521.0,2520.9,4.00083]
[1748689534564,2.67973,2521.0,2520.9,3.2078]
[1748689534763,0.79312,2520.7,2520.6,3.21375723]
[1748689535059,0.79312,2520.7,2520.6,0.00595723]
[1748689535260,5.79312,2520.7,2520.6,0.00595723]
[1748689535650,7.17860149,2520.7,2520.6,0.00595723]
[1748689537570,8.44430149,2520.7,2520.6,0.00595723]
[1748689538361,0.79331,2520.1,2520.0,4.5651]
[1748689538567,0.79329,2520.2,2520.1,0.79329]
[1748689539059,1.2415,2520.4,2520.0,4.5651]
[1748689539264,0.79329,2520.2,2520.1,0.79329]
[1748689539669,2.69469,2520.2,2520.1,0.79331]
[1748689540567,0.6281,2520.3,2520.2,0.79328]
[1748689541162,0.00595723,2520.4,2520.3,0.79325]
[1748689546065,0.00595723,2520.4,2520.3,2.09335]
[1748689546666,0.79917723,2520.4,2520.3,2.09335]
[1748689546972,0.00595723,2520.4,2520.3,2.09335]
[1748689550464,0.07751062,2520.4,2520.3,2.09335]
[1748689555072,0.07751062,2520.4,2520.3,5.30115]
[1748689556777,0.07751062,2520.4,2520.3,9.22815]
[1748689563682,0.79308,2520.9,2520.8,0.79309]
[1748689563981,0.79308,2520.9,2520.8,3.2078]
[1748689564183,2.18220428,2520.9,2520.8,3.2078]
[1748689564477,2.18220428,2520.9,2520.5,4.5371]
[1748689564683,0.79315,2520.6,2520.5,5.33027]
[1748689565986,0.79315,2520.6,2520.5,3.2078]
[1748689566782,0.79315,2520.6,2520.5,4.00099]
[1748689567684,0.79315,2520.6,2520.1,2.62487]
[1748689567685,0.79334,2520.0,2519.9,0.00595723]
[1748689567887,4.00114,2520.0,2519.9,0.00595723]
[1748689568078,9.00114,2520.0,2519.9,0.00595723]
[1748689568480,10.39023116,2520.0,2519.9,0.00595723]
[1748689571286,5.39023116,2520.0,2519.9,0.00595723]
[1748689571476,5.63876309,2520.0,2519.9,0.00595723]
[1748689571678,1.38909116,2520.0,2519.9,0.79932723]
[1748689571979,2.18243116,2520.0,2519.9,0.00595723]
[1748689572184,2.18243116,2520.0,2519.9,0.79932723]
[1748689572185,1.38909116,2520.0,2519.9,0.79932723]
[1748689572688,0.79334,2520.0,2519.9,1.34785723]
[1748689573083,0.79334,2520.0,2519.9,2.14122723]
[1748689573692,0.79334,2520.0,2519.9,1.34785723]
[1748689573890,0.79334,2520.0,2519.9,0.00595723]
[1748689574188,0.79334,2520.0,2519.9,0.79932723]
[1748689574390,0.79333,2520.1,2520.0,0.79334]
[1748689574781,0.79334,2520.0,2519.9,0.79930723]
[1748689575079,0.79334,2520.0,2519.9,0.00595723]
[1748689575782,5.79334,2520.0,2519.9,0.00595723]
[1748689576394,7.13654,2520.0,2519.9,0.00595723]
[1748689576788,7.38498215,2520.0,2519.9,0.00595723]
[1748689577093,7.13654,2520.0,2519.9,0.00595723]
[1748689577392,8.52214175,2520.0,2519.9,0.00595723]
[1748689580392,8.77071353,2520.0,2519.9,0.00595723]
[1748689580895,8.84227754,2520.0,2519.9,0.00595723]
[1748689581392,8.84216606,2520.0,2519.9,0.00595723]
[1748689581600,8.59369514,2520.0,2519.9,0.00595723]
[1748689582499,3.59369514,2520.0,2519.9,0.00595723]
[1748689583100,3.8421912,2520.0,2519.9,0.00595723]
[1748689583305,3.59369514,2520.0,2519.9,0.00595723]
[1748689583796,3.84225113,2520.0,2519.9,0.00595723]
[1748689584001,3.59369514,2520.0,2519.9,0.00595723]
[1748689584998,3.84221243,2520.0,2519.9,0.00595723]
[1748689585197,3.59369514,2520.0,2519.9,0.00595723]
[1748689586099,3.8422307,2520.0,2519.9,0.00595723]
[1748689586303,3.59369514,2520.0,2519.9,0.00595723]
[1748689588105,3.84215564,2520.0,2519.9,0.00595723]
[1748689588315,3.59369514,2520.0,2519.9,0.00595723]
[1748689589199,3.84218102,2520.0,2519.9,0.00595723]
[1748689589401,3.84218781,2520.0,2519.9,0.00595723]
[1748689589907,3.77063442,2520.0,2519.9,0.00595723]
[1748689590407,3.52214175,2520.0,2519.9,0.00595723]
[1748689590908,3.770631,2520.0,2519.9,0.00595723]
[1748689591905,3.52214175,2520.0,2519.9,0.00595723]
[1748689592103,3.77062763,2520.0,2519.9,0.00595723]
[1748689592303,3.77063607,2520.0,2519.9,0.00595723]
[1748689592511,3.52214175,2520.0,2519.9,0.00595723]
[1748689593017,3.59369514,2520.0,2519.9,0.00595723]
[1748689594006,3.84227021,2520.0,2519.9,0.00595723]
[1748689594208,3.59369514,2520.0,2519.9,0.00595723]
[1748689595007,2.25049514,2520.0,2519.9,0.00595723]
[1748689595410,3.51289514,2520.0,2519.9,0.00595723]
[1748689595611,4.39286946,2520.0,2519.9,0.00595723]
[1748689595816,4.14429514,2520.0,2519.9,0.00595723]
[1748689598010,4.3928685,2520.0,2519.9,0.00595723]
[1748689598216,4.14429514,2520.0,2519.9,0.00595723]
[1748689598705,4.39287018,2520.0,2519.9,0.00595723]
[1748689598910,4.14429514,2520.0,2519.9,0.00595723]
[1748689599112,7.35209514,2520.0,2519.9,0.00595723]
[1748689602718,7.60085419,2520.0,2519.9,0.00595723]
[1748689602918,7.35209514,2520.0,2519.9,0.00595723]
[1748689603115,7.60092628,2520.0,2519.9,0.00595723]
[1748689603327,7.60094286,2520.0,2519.9,0.00595723]
[1748689603518,7.35209514,2520.0,2519.9,0.00595723]
[1748689603719,7.60094523,2520.0,2519.9,0.00595723]
[1748689604120,7.60083598,2520.0,2519.9,0.00595723]
[1748689604413,9.94130931,2520.0,2519.9,0.00595723]
[1748689604820,9.6925695,2520.0,2519.9,0.00595723]
[1748689605318,9.9411217,2520.0,2519.9,0.00595723]
[1748689605518,9.94108663,2520.0,2519.9,0.00595723]
[1748689605819,9.94107594,2520.0,2519.9,0.00595723]
[1748689606021,9.94105884,2520.0,2519.9,0.00595723]
[1748689606323,0.79359,2519.2,2519.1,1.47368]
[1748689606623,4.00139,2519.2,2519.1,1.305]
[1748689606924,0.79379,2518.6,2518.1,36.5328]
[1748689607219,0.00595723,2518.6,2518.2,4.5449]
[1748689607523,0.79381,2518.5,2518.2,4.5449]
[1748689607823,0.79381,2518.5,2518.4,0.79385]
[1748689608124,0.79976723,2518.6,2518.4,0.79385]
[1748689608319,0.79976723,2518.6,2518.5,1.2839]
[1748689608717,0.79976723,2518.6,2518.5,2.07772]
[1748689608916,0.79976723,2518.6,2518.5,1.2839]
[1748689609316,0.79976723,2518.6,2518.5,2.07772]
[1748689609519,0.79976723,2518.6,2518.5,1.2839]
[1748689611321,2.18898741,2518.6,2518.5,1.2839]
[1748689611527,0.79388,2518.3,2518.2,0.6249]
[1748689611824,0.79388,2518.3,2518.2,1.9616]
[1748689612714,0.79388,2518.3,2518.2,2.75551]
[1748689612919,3.2078,2518.4,2518.3,0.79388]
[1748689613119,0.00595723,2518.6,2518.3,0.79388]
[1748689613120,0.00595723,2518.6,2518.5,0.79382]
[1748689615430,0.79382,2518.5,2518.4,0.79383]
[1748689615630,0.79382,2518.5,2518.4,2.05414]
[1748689616026,0.79382,2518.5,2518.4,2.05415]
[1748689616233,0.00595723,2518.6,2518.5,0.79382]
[1748689616533,0.00595723,2518.6,2518.5,7.71172]
[1748689617028,0.79973723,2518.6,2518.5,1.9179]
[1748689617931,0.00595723,2518.6,2518.5,2.71172]
[1748689620431,0.79973723,2518.6,2518.5,2.71172]
[1748689620632,0.00595723,2518.6,2518.5,2.71172]
[1748689621730,0.79973723,2518.6,2518.5,2.71172]
[1748689622032,0.79973723,2518.6,2518.5,1.9179]
[1748689622236,0.79973723,2518.6,2518.5,2.71172]
[1748689623137,0.00595723,2518.6,2518.5,2.71172]
[1748689623639,0.20445723,2518.6,2518.5,2.71172]
[1748689627846,0.99823723,2518.6,2518.5,2.71172]
[1748689629046,0.20445723,2518.6,2518.5,2.71172]
[1748689629341,0.99823723,2518.6,2518.5,2.71172]
[1748689631043,0.20445723,2518.6,2518.5,2.71172]
[1748689631642,0.99823723,2518.6,2518.5,2.71172]
[1748689632443,0.20445723,2518.6,2518.5,2.71172]
[1748689634454,0.99823723,2518.6,2518.5,2.71172]
[1748689634757,0.20445723,2518.6,2518.5,2.71172]
[1748689635255,0.99823723,2518.6,2518.5,2.71172]
[1748689635456,0.99823723,2518.6,2518.5,2.05412]
[1748689636458,0.99823723,2518.6,2518.5,1.2603]
[1748689637753,0.99823723,2518.6,2518.5,2.05412]
[1748689638457,0.99823723,2518.6,2518.5,1.2603]
[1748689638657,0.79388,2518.3,2518.2,3.8327]
[1748689638962,0.79391,2518.2,2518.1,0.00595723]
[1748689639352,2.69561,2518.2,2518.1,0.00595723]
[1748689639857,2.69561,2518.2,2518.1,0.79989723]
[1748689640155,1.43681,2518.2,2518.1,0.79989723]
[1748689643261,2.74581,2518.2,2518.1,0.79989723]
[1748689644456,2.74581,2518.2,2518.1,0.00595723]
[1748689645057,0.79407,2517.8,2517.7,0.79406]
[1748689645856,0.79407,2517.8,2517.7,2.07316]
[1748689649467,1.41119,2518.0,2517.9,0.794]
[1748689650157,0.79396,2518.1,2518.0,0.79395]
[1748689653869,0.79396,2518.1,2517.8,1.31]
[1748689653870,0.794,2518.0,2517.9,0.79398]
[1748689654166,0.794,2517.9,2517.8,2.10401]
[1748689657166,0.794,2517.9,2517.8,1.31]
[1748689657470,0.79407,2517.7,2517.6,1.46827]
[1748689659877,0.7941,2517.6,2517.5,1.37005723]
[1748689660771,0.7941,2517.6,2517.5,2.16418723]
[1748689661169,0.7941,2517.6,2517.5,1.37005723]
[1748689661371,0.7941,2517.6,2517.5,0.00595723]
[1748689661773,2.0727,2517.6,2517.5,0.00595723]
[1748689663975,0.7941,2517.6,2517.5,0.80008723]
[1748689664271,2.10796,2517.8,2517.7,0.79407]
[1748689664576,2.10794,2517.8,2517.7,0.79407]
[1748689664976,2.10794,2517.8,2517.7,2.06637]
[1748689665370,3.51798939,2517.8,2517.7,1.2723]
[1748689666168,2.86258939,2517.8,2517.7,2.06637]
[1748689666975,2.86258939,2517.8,2517.7,1.2723]
[1748689667474,3.06108939,2517.8,2517.7,1.2723]
[1748689668174,0.79407,2517.7,2517.6,0.6747]
[1748689668569,0.7941,2517.6,2517.5,0.80007723]
[1748689670377,0.7941,2517.6,2517.5,0.00595723]
[1748689671478,0.7941,2517.6,2517.5,0.80008723]
[1748689671677,0.7941,2517.6,2517.5,2.08688723]
[1748689673482,0.7941,2517.6,2517.5,1.29275723]
[1748689674484,0.7941,2517.6,2517.5,0.00595723]
[1748689676778,2.7666,2517.6,2517.5,0.00595723]
[1748689677177,2.7601891,2517.6,2517.5,0.00595723]
[1748689677777,4.17383796,2517.6,2517.5,0.00595723]
[1748689678882,7.38163796,2517.6,2517.5,0.00595723]
[1748689680483,7.38163796,2517.6,2516.9,0.6178]
[1748689680484,1.98539,2517.5,2516.9,0.6178]
[1748689680788,0.79434,2516.9,2516.8,0.79433]
[1748689681294,0.79434,2516.9,2516.8,1.2564]
[1748689681491,0.79435,2516.8,2516.7,4.65925]
[1748689681783,0.6825,2517.0,2516.7,0.6571]
[1748689681989,0.80023723,2517.1,2517.0,0.79429]
[1748689682382,0.80023723,2517.1,2516.8,1.2904]
[1748689682383,0.7943,2517.0,2516.9,0.7943]
[1748689682585,0.80023723,2517.1,2517.0,0.79429]
[1748689682992,0.79431,2517.0,2516.9,0.7943]
[1748689683290,0.79432,2516.9,2516.8,2.08473]
[1748689683883,0.79432,2516.9,2516.8,1.2904]
[1748689684085,0.79435,2516.8,2516.7,1.45146]
[1748689684987,0.79435,2516.8,2516.7,2.75946]
[1748689685489,0.79435,2516.8,2516.7,2.75948]
[1748689685896,4.5298,2517.0,2516.6,0.63337145]
[1748689685897,0.79438,2516.7,2516.6,0.00397145]
[1748689686087,1.46898,2516.7,2516.6,0.00397145]
[1748689686693,1.46898,2516.7,2516.6,0.79838145]
[1748689687883,1.46898,2516.7,2516.6,0.00397145]
[1748689688295,1.46898,2516.7,2516.6,1.24777145]
[1748689691794,1.46898,2516.7,2516.6,2.04218145]
[1748689692097,1.46898,2516.7,2516.6,1.24777145]
[1748689692889,1.46898,2516.7,2516.6,2.04218145]
[1748689693096,1.46898,2516.7,2516.6,1.24777145]
[1748689695897,1.46898,2516.7,2516.6,1.45e-06]
[1748689696100,1.66758,2516.7,2516.6,1.45e-06]
[1748689696597,1.66758,2516.7,2516.6,1.36420145]
[1748689699300,0.99298,2516.7,2516.6,1.36420145]
[1748689700098,0.99298,2516.7,2516.6,2.15861145]
[1748689701602,0.99298,2516.7,2516.6,1.36420145]
[1748689701907,0.99298,2516.7,2516.6,2.15861145]
[1748689702198,0.1986,2516.7,2516.6,5.36641145]
[1748689703003,0.00595723,2517.1,2517.0,0.79429]
[1748689703901,0.00595723,2517.1,2517.0,2.16079]
[1748689704504,0.80021723,2517.1,2517.0,2.16079]
[1748689705403,0.00595723,2517.1,2517.0,2.16079]
[1748689706306,0.79416,2517.5,2517.4,0.79415]
[1748689706802,3.8297,2517.8,2517.2,3.2078]
[1748689706803,1.98518,2517.7,2517.2,3.2078]
[1748689707002,0.79416,2517.4,2517.3,2.0175]
[1748689707203,0.79416,2517.4,2517.3,0.6529]
[1748689708301,1.41606,2517.4,2517.3,0.6529]
[1748689711000,1.41606,2517.4,2517.3,1.44709]
[1748689711702,0.80006723,2517.6,2517.5,0.79413]
[1748689712003,0.79415,2517.5,2517.4,0.79415]
[1748689712706,0.79416,2517.4,2517.3,0.6529]
[1748689713004,4.00196,2517.4,2517.3,0.6529]
[1748689713406,0.79416,2517.4,2517.3,0.6529]
[1748689714405,0.79422,2517.2,2517.1,4.70424]
[1748689714707,0.79422,2517.2,2517.1,3.91]
[1748689714908,0.79422,2517.2,2517.1,0.79426]
[1748689715108,0.79426,2517.1,2517.0,0.6168]
[1748689716209,4.02642,2517.3,2516.6,3.20780145]
[1748689716411,0.79433,2516.9,2516.8,0.79435]
[1748689716911,0.79431,2517.0,2516.9,0.79431]
[1748689717112,0.79428,2517.1,2517.0,0.79427]
[1748689717614,2.16025,2517.2,2517.1,0.79426]
[1748689717815,0.79425,2517.2,2517.1,0.79426]
[1748689718814,0.79427,2517.1,2517.0,0.79426]
[1748689720711,0.79432,2517.0,2516.9,0.79429]
[1748689720912,0.79432,2516.9,2516.8,2.12192]
[1748689721105,0.79431,2517.0,2516.9,0.7943]
[1748689721306,0.79431,2517.0,2516.9,2.1167]
[1748689722815,0.79429,2517.1,2517.0,0.79427]
[1748689724414,0.79429,2517.0,2516.9,2.11671]
[1748689724613,0.79429,2517.0,2516.9,2.11672]
[1748689725013,0.79435,2516.9,2516.8,0.79433]
[1748689725215,1.44615,2516.9,2516.8,0.79433]
[1748689726412,1.44615,2516.9,2516.8,2.04133]
[1748689731017,1.44615,2516.9,2516.8,1.247]
[1748689731226,0.79435,2516.8,2516.7,0.6277]
[1748689731518,0.79435,2516.8,2516.7,1.42206]
[1748689732021,0.79438,2516.7,2516.6,1.28670145]
[1748689732221,0.79438,2516.7,2516.6,1.45e-06]
[1748689733519,0.79438,2516.7,2516.6,0.79441145]
[1748689733713,0.79438,2516.7,2516.6,1.45e-06]
[1748689733919,0.79438,2516.7,2516.6,0.79441145]
[1748689737124,0.79438,2516.7,2516.6,1.45e-06]
[1748689737625,0.79438,2516.7,2516.6,0.79441145]
[1748689738530,4.00218,2516.7,2516.6,0.79441145]
[1748689738831,0.79438,2516.7,2516.6,0.79441145]
[1748689739228,0.79438,2516.7,2516.6,1.45e-06]
[1748689739420,0.79438,2516.7,2516.6,0.79441145]
[1748689739930,0.79438,2516.7,2516.6,1.45e-06]
[1748689740333,4.00218,2516.7,2516.6,1.45e-06]
[1748689740829,9.00218,2516.7,2516.6,1.45e-06]
[1748689741030,0.7947,2515.7,2515.6,0.6656]
[1748689741331,3.2078,2515.9,2515.3,2.0172]
[1748689741526,0.79475,2515.6,2515.5,0.79475]
[1748689741726,3.8326,2515.9,2515.4,1.3667]
[1748689741931,0.79474,2515.6,2515.5,0.79473]
[1748689742233,0.79479,2515.4,2515.3,0.00595723]
[1748689742532,3.2078,2515.6,2515.3,1.36815723]
[1748689742743,0.79479,2515.4,2515.3,2.02055723]
[1748689743030,0.79479,2515.4,2515.3,2.09211062]
[1748689743224,0.79479,2515.4,2515.3,2.88692062]
[1748689743420,0.7947,2515.7,2515.6,0.79472]
[1748689743626,0.00595723,2515.8,2515.7,0.7947]
[1748689744436,0.00595723,2515.8,2515.7,1.4471]
[1748689747530,0.00595723,2515.8,2515.3,1.99299723]
[1748689747531,23.23795723,2515.8,2515.3,7.23e-06]
[1748689747728,1.9871,2515.3,2514.0,1.2846]
[1748689747932,3.2078,2514.7,2514.1,0.07955133]
[1748689748140,1.9489,2514.6,2514.2,1.2846]
[1748689748438,0.79511,2514.5,2514.3,0.079545]
[1748689748637,1.9489,2514.6,2514.3,0.079545]
[1748689748846,0.79511,2514.4,2514.3,0.079545]
[1748689749337,3.2078,2514.4,2513.6,3.2078]
[1748689749538,0.79528,2513.9,2513.7,0.07956398]
[1748689749836,0.7953,2513.8,2513.7,0.07956398]
[1748689750026,5.1718,2513.8,2513.1,1.3081]
[1748689750231,0.79549,2513.2,2513.1,1.3081]
[1748689750427,0.79548,2513.3,2513.1,1.3081]
[1748689750630,1.3007,2513.4,2513.1,1.3081]
[1748689750931,0.79549,2513.2,2513.1,1.3081]
[1748689751131,0.79555,2513.0,2512.9,3.2078]
[1748689751930,0.79555,2513.0,2512.8,1.2611]
[1748689751931,0.79558,2512.9,2512.8,1.2611]
[1748689752337,0.79565,2512.7,2512.5,3.2078]
[1748689752637,0.00596908,2512.9,2512.6,1.2611]
[1748689752844,0.80156908,2512.9,2512.6,1.2611]
[1748689753136,0.79564,2512.8,2512.6,1.2611]
[1748689753336,0.00596908,2512.9,2512.6,1.2611]
[1748689753635,0.79562,2512.8,2512.6,1.2611]
[1748689753836,0.79565,2512.7,2512.6,1.2611]
[1748689756332,0.00596908,2512.9,2512.8,0.79562]
[1748689756540,0.00596908,2512.9,2512.8,4.00342]
[1748689756840,0.80154908,2512.9,2512.8,9.00342]
[1748689757035,0.80154908,2512.9,2512.8,8.2078]
[1748689757440,0.80154908,2512.9,2512.8,10.1838]
[1748689757841,0.00596908,2512.9,2512.8,10.97942]
[1748689759246,0.80154908,2512.9,2512.8,10.97942]
[1748689759446,0.80154908,2512.9,2512.8,10.1838]
[1748689759740,1.98826,2513.8,2512.8,10.97942]
[1748689759948,0.79543,2513.4,2513.3,3.2078]
[1748689760148,0.79543,2513.4,2513.3,4.5109]
[1748689761143,0.79543,2513.4,2513.3,1.3031]
[1748689761948,0.79543,2513.4,2513.3,5.30636]
[1748689762445,0.79543,2513.4,2513.3,4.5109]
[1748689764051,0.78600624,2513.4,2513.3,4.5109]
[1748689764746,0.78600624,2513.4,2513.3,1.3031]
[1748689766850,0.78600624,2513.4,2513.3,4.5109]
[1748689768760,0.78600624,2513.4,2513.3,5.30636]
[1748689769955,0.00596908,2513.6,2513.5,0.79539]
[1748689770150,1.3121,2514.4,2513.6,1.98837]
[1748689770355,0.79526,2514.0,2513.9,3.2078]
[1748689771154,0.79526,2514.0,2513.9,4.00307]
[1748689771570,0.79526,2514.0,2513.9,3.2078]
[1748689771752,0.7953,2513.8,2513.7,3.933]
[1748689771956,0.79539,2513.5,2513.4,0.6391]
[1748689772160,0.79539,2513.5,2513.4,4.5721]
[1748689773274,0.79539,2513.5,2513.4,3.933]
[1748689773972,0.79546,2513.3,2513.2,3.2078]
[1748689774275,0.79549,2513.2,2513.1,3.93896908]
[1748689774475,0.79549,2513.2,2513.1,0.00596908]
[1748689776569,2.74879,2513.2,2513.1,0.00596908]
[1748689776770,3.2078,2512.2,2510.2,3.2078]
[1748689777066,3.2078,2510.6,2510.1,34.75730016]